[Event "*** SCC Grand Prix: Titled Tuesday Blitz"]
[Site "Chess.com"]
[Date "2020.07.07"]
[Round "3"]
[White "NewBornNow"]
[Black "Andreikka"]
[Result "1/2-1/2"]
[WhiteElo "2661"]
[BlackElo "2916"]
[TimeControl "180+1"]
[EndTime "10:31:13 PDT"]
[Termination "Game drawn by agreement"]

1. e4 {[%clk 0:03:00.9]} 1... d5 {[%clk 0:02:56.1]} 2. exd5 {[%clk 0:03:00]}
2... Qxd5 {[%clk 0:02:57]} 3. Nc3 {[%clk 0:02:59.3]} 3... Qa5 {[%clk 0:02:56.5]}
4. d4 {[%clk 0:02:58.6]} 4... Nf6 {[%clk 0:02:56.1]} 5. Bc4 {[%clk 0:02:57.7]}
5... c6 {[%clk 0:02:56]} 6. Bd2 {[%clk 0:02:53.3]} 6... Bf5 {[%clk 0:02:55.5]}
7. Nd5 {[%clk 0:02:49.4]} 7... Qd8 {[%clk 0:02:55.6]} 8. Nxf6+ {[%clk
0:02:49.5]} 8... gxf6 {[%clk 0:02:56.5]} 9. Nf3 {[%clk 0:02:49.5]} 9... e6
{[%clk 0:02:56.3]} 10. Bb3 {[%clk 0:02:46.9]} 10... Nd7 {[%clk 0:02:55.6]} 11.
Qe2 {[%clk 0:02:46.4]} 11... Qc7 {[%clk 0:02:55.5]} 12. O-O-O {[%clk 0:02:42.5]}
12... Bd6 {[%clk 0:02:50.2]} 13. Nh4 {[%clk 0:02:39.8]} 13... Bg6 {[%clk
0:02:50.1]} 14. g3 {[%clk 0:02:38.5]} 14... O-O-O {[%clk 0:02:48.9]} 15. c4
{[%clk 0:02:20.4]} 15... c5 {[%clk 0:02:39.9]} 16. d5 {[%clk 0:02:20.1]} 16...
exd5 {[%clk 0:02:38]} 17. Nxg6 {[%clk 0:02:17.8]} 17... hxg6 {[%clk 0:02:37.6]}
18. cxd5 {[%clk 0:02:17.4]} 18... Rhe8 {[%clk 0:02:36.1]} 19. Qf1 {[%clk
0:02:04.8]} 19... Ne5 {[%clk 0:02:24.9]} 20. f4 {[%clk 0:01:59.9]} 20... Ng4
{[%clk 0:02:25.2]} 21. Qf3 {[%clk 0:01:52.9]} 21... f5 {[%clk 0:02:25]} 22. Bc2
{[%clk 0:01:30.2]} 22... Re7 {[%clk 0:01:49.6]} 23. h3 {[%clk 0:01:20.1]} 23...
Nf6 {[%clk 0:01:49.3]} 24. Rhe1 {[%clk 0:01:16.8]} 24... Rde8 {[%clk 0:01:31.8]}
25. Rxe7 {[%clk 0:01:13.1]} 25... Rxe7 {[%clk 0:01:32.3]} 26. Re1 {[%clk
0:01:12.3]} 26... Rxe1+ {[%clk 0:01:32.8]} 27. Bxe1 {[%clk 0:01:11.8]} 27... Qe7
{[%clk 0:01:33.7]} 28. Bc3 {[%clk 0:01:02.4]} 28... Ne4 {[%clk 0:01:33.2]} 29.
g4 {[%clk 0:00:59.9]} 29... Nxc3 {[%clk 0:01:30]} 30. bxc3 {[%clk 0:00:58.9]}
30... fxg4 {[%clk 0:01:29.9]} 31. hxg4 {[%clk 0:00:57.7]} 31... Qf6 {[%clk
0:01:09]} 32. f5 {[%clk 0:00:55.8]} 32... g5 {[%clk 0:01:09.1]} 33. Kb2 {[%clk
0:00:53.6]} 33... Be5 {[%clk 0:01:08.8]} 34. a4 {[%clk 0:00:50.2]} 34... Qb6+
{[%clk 0:01:06.3]} 35. Kc1 {[%clk 0:00:49.5]} 35... a6 {[%clk 0:01:02.2]} 36.
Qd3 {[%clk 0:00:43.7]} 36... Kb8 {[%clk 0:00:49.6]} 37. Kd1 {[%clk 0:00:39.3]}
37... f6 {[%clk 0:00:47.3]} 38. d6 {[%clk 0:00:37.5]} 38... Bxd6 {[%clk
0:00:45.8]} 39. Qd5 {[%clk 0:00:36.4]} 39... Be5 {[%clk 0:00:45]} 40. Kd2 {[%clk
0:00:35]} 40... Qa5 {[%clk 0:00:42.8]} 41. Qc4 {[%clk 0:00:32.6]} 41... Qd8+
{[%clk 0:00:37.6]} 42. Bd3 {[%clk 0:00:30.3]} 42... Qd6 {[%clk 0:00:34.5]} 43.
Kc2 {[%clk 0:00:30.1]} 43... Bf4 {[%clk 0:00:24.3]} 44. Kb3 {[%clk 0:00:24.6]}
44... Ka7 {[%clk 0:00:19.6]} 45. Kc2 {[%clk 0:00:23.4]} 45... Be3 {[%clk
0:00:18]} 46. Qe4 {[%clk 0:00:21]} 46... Qh2+ {[%clk 0:00:16.9]} 47. Kb3 {[%clk
0:00:21]} 47... Qd2 {[%clk 0:00:17.4]} 48. Bc2 {[%clk 0:00:17.7]} 48... Bf4
{[%clk 0:00:16.2]} 49. Qd3 {[%clk 0:00:16.4]} 49... Qf2 {[%clk 0:00:13.9]} 50.
Qc4 {[%clk 0:00:15.7]} 50... Be5 {[%clk 0:00:11.8]} 51. Be4 {[%clk 0:00:15.5]}
51... Qe3 {[%clk 0:00:12.3]} 52. Qd3 {[%clk 0:00:15]} 52... Qc1 {[%clk
0:00:11.1]} 53. Qc2 {[%clk 0:00:14.3]} 53... Qa1 {[%clk 0:00:08.5]} 54. Qd3
{[%clk 0:00:13.8]} 54... Qc1 {[%clk 0:00:04.3]} 55. Qc2 {[%clk 0:00:13.6]} 55...
Qe3 {[%clk 0:00:04.8]} 56. Qd3 {[%clk 0:00:13.4]} 56... Qg1 {[%clk 0:00:02.8]}
57. Bf3 {[%clk 0:00:13]} 57... c4+ {[%clk 0:00:02.9]} 58. Kxc4 {[%clk 0:00:12]}
58... Qb6 {[%clk 0:00:02.8]} 59. Qd5 {[%clk 0:00:10.6]} 59... Qc7+ {[%clk
0:00:01.7]} 60. Kd3 {[%clk 0:00:10.4]} 60... Qxc3+ {[%clk 0:00:01.8]} 61. Ke2
{[%clk 0:00:10.4]} 61... Qb2+ {[%clk 0:00:02.4]} 62. Kf1 {[%clk 0:00:09.2]}
62... Bf4 {[%clk 0:00:02.8]} 63. Qc5+ {[%clk 0:00:07.8]} 63... Ka8 {[%clk
0:00:01.7]} 64. Qd5 {[%clk 0:00:06.6]} 64... Bb8 {[%clk 0:00:02.6]} 65. Qe4
{[%clk 0:00:05.3]} 65... Qc1+ {[%clk 0:00:02.5]} 66. Kg2 {[%clk 0:00:04.6]}
66... Qc7 {[%clk 0:00:03.2]} 67. Be2 {[%clk 0:00:04.9]} 67... Qg3+ {[%clk
0:00:03]} 68. Kf1 {[%clk 0:00:05.8]} 68... Ka7 {[%clk 0:00:02.5]} 69. Bf3 {[%clk
0:00:06.2]} 69... Qc7 {[%clk 0:00:01.8]} 70. Qd4+ {[%clk 0:00:06.2]} 70... Qb6
{[%clk 0:00:02.3]} 71. Qxb6+ {[%clk 0:00:05.7]} 71... Kxb6 {[%clk 0:00:03.2]}
72. Ke2 {[%clk 0:00:05.9]} 72... Be5 {[%clk 0:00:01.9]} 73. Kd3 {[%clk
0:00:05.7]} 73... Kc7 {[%clk 0:00:02.1]} 74. Kc4 {[%clk 0:00:05.7]} 74... b6
{[%clk 0:00:02.7]} 75. Kd5 {[%clk 0:00:05.1]} 75... b5 {[%clk 0:00:01.8]} 76.
axb5 {[%clk 0:00:04.6]} 76... axb5 {[%clk 0:00:02.7]} 77. Kc5 {[%clk 0:00:05.1]}
77... b4 {[%clk 0:00:03.1]} 78. Kxb4 {[%clk 0:00:05.1]} 78... Kd6 {[%clk
0:00:04]} 79. Kc4 {[%clk 0:00:05.6]} 79... Bf4 {[%clk 0:00:04.9]} 80. Kd3 {[%clk
0:00:06]} 80... Be5 {[%clk 0:00:05.8]} 81. Ke2 {[%clk 0:00:06.3]} 81... Bf4
{[%clk 0:00:06.7]} 82. Bg2 {[%clk 0:00:06.4]} 82... Be5 {[%clk 0:00:07.6]}
1/2-1/2

[Event "*** SCC Grand Prix: Titled Tuesday Blitz"]
[Site "Chess.com"]
[Date "2020.07.07"]
[Round "3"]
[White "ZverevLev"]
[Black "viktorskliarov"]
[Result "1/2-1/2"]
[WhiteElo "2350"]
[BlackElo "2525"]
[TimeControl "180+1"]
[EndTime "10:31:18 PDT"]
[Termination "Game drawn by repetition"]

1. e4 {[%clk 0:03:00.9]} 1... c5 {[%clk 0:02:59.6]} 2. Nf3 {[%clk 0:03:00]} 2...
Nc6 {[%clk 0:02:59.9]} 3. d4 {[%clk 0:02:59.8]} 3... cxd4 {[%clk 0:03:00.8]} 4.
Nxd4 {[%clk 0:02:59.2]} 4... Nf6 {[%clk 0:03:01.4]} 5. Nc3 {[%clk 0:02:58.4]}
5... e5 {[%clk 0:03:01.4]} 6. Ndb5 {[%clk 0:02:57.8]} 6... d6 {[%clk 0:03:00.3]}
7. Bg5 {[%clk 0:02:56.6]} 7... a6 {[%clk 0:03:00.1]} 8. Na3 {[%clk 0:02:55.7]}
8... b5 {[%clk 0:02:58.8]} 9. Bxf6 {[%clk 0:02:53.5]} 9... gxf6 {[%clk
0:02:57.9]} 10. Nd5 {[%clk 0:02:54.4]} 10... f5 {[%clk 0:02:57.7]} 11. g3 {[%clk
0:02:53.2]} 11... Bg7 {[%clk 0:02:55.6]} 12. Bg2 {[%clk 0:02:52.3]} 12... O-O
{[%clk 0:02:35.2]} 13. exf5 {[%clk 0:02:50.9]} 13... Bxf5 {[%clk 0:02:33.4]} 14.
Ne3 {[%clk 0:02:49.3]} 14... Nd4 {[%clk 0:01:41.1]} 15. Nxf5 {[%clk 0:02:41.3]}
15... Nxf5 {[%clk 0:01:40.3]} 16. Qd3 {[%clk 0:02:40.8]} 16... e4 {[%clk
0:01:27.7]} 17. Bxe4 {[%clk 0:02:37.4]} 17... Bxb2 {[%clk 0:01:25.2]} 18. Rb1
{[%clk 0:02:36.2]} 18... Bxa3 {[%clk 0:00:56.1]} 19. Bxf5 {[%clk 0:02:34.3]}
19... Re8+ {[%clk 0:00:49.8]} 20. Kf1 {[%clk 0:02:29.4]} 20... Bc5 {[%clk
0:00:49.5]} 21. Bxh7+ {[%clk 0:02:28]} 21... Kg7 {[%clk 0:00:48.4]} 22. Be4
{[%clk 0:02:22.9]} 22... Qf6 {[%clk 0:00:45.8]} 23. f3 {[%clk 0:02:21.7]} 23...
Rad8 {[%clk 0:00:30.7]} 24. f4 {[%clk 0:01:40.8]} 24... d5 {[%clk 0:00:27.3]}
25. Bf3 {[%clk 0:01:39.7]} 25... Re3 {[%clk 0:00:26.7]} 26. Qd1 {[%clk
0:01:37.7]} 26... d4 {[%clk 0:00:24]} 27. Kg2 {[%clk 0:01:30.4]} 27... d3 {[%clk
0:00:24.2]} 28. Rb3 {[%clk 0:01:27.4]} 28... d2 {[%clk 0:00:17.8]} 29. Rxe3
{[%clk 0:01:25]} 29... Bxe3 {[%clk 0:00:18.7]} 30. Qe2 {[%clk 0:01:19.9]} 30...
Qc3 {[%clk 0:00:15.3]} 31. Be4 {[%clk 0:01:17.6]} 31... Kf8 {[%clk 0:00:10.1]}
32. Rd1 {[%clk 0:01:15]} 32... Re8 {[%clk 0:00:07.3]} 33. Bd3 {[%clk 0:01:10.9]}
33... b4 {[%clk 0:00:07.7]} 34. Qh5 {[%clk 0:01:09.4]} 34... a5 {[%clk
0:00:06.8]} 35. Qh6+ {[%clk 0:01:04.2]} 35... Ke7 {[%clk 0:00:07.1]} 36. Qg5+
{[%clk 0:01:01.6]} 36... Kf8 {[%clk 0:00:07.1]} 37. Qh6+ {[%clk 0:00:57.5]}
37... Ke7 {[%clk 0:00:06.8]} 38. h3 {[%clk 0:00:50.9]} 38... Rc8 {[%clk
0:00:02.5]} 39. Qg5+ {[%clk 0:00:50.5]} 39... Ke8 {[%clk 0:00:02.4]} 40. Qg8+
{[%clk 0:00:49.2]} 40... Ke7 {[%clk 0:00:02.4]} 41. Qg5+ {[%clk 0:00:49]} 41...
Kf8 {[%clk 0:00:02.5]} 42. Qe5 {[%clk 0:00:46.7]} 42... Qxe5 {[%clk 0:00:01.4]}
43. fxe5 {[%clk 0:00:47.6]} 43... Rc5 {[%clk 0:00:01.9]} 44. Kf3 {[%clk
0:00:46.2]} 44... Rxe5 {[%clk 0:00:02]} 45. g4 {[%clk 0:00:45.3]} 45... Bh6
{[%clk 0:00:02.3]} 46. Be4 {[%clk 0:00:44.8]} 46... Rc5 {[%clk 0:00:01.9]} 47.
h4 {[%clk 0:00:44]} 47... Rc3+ {[%clk 0:00:02.4]} 48. Bd3 {[%clk 0:00:44.1]}
48... f6 {[%clk 0:00:01.3]} 49. Ke4 {[%clk 0:00:41.2]} 49... Kg7 {[%clk
0:00:01.8]} 50. Kf5 {[%clk 0:00:38.5]} 50... Rc7 {[%clk 0:00:02.1]} 51. Ke4
{[%clk 0:00:35.9]} 51... Rc5 {[%clk 0:00:02.2]} 52. Kf3 {[%clk 0:00:31.5]} 52...
Re5 {[%clk 0:00:02.7]} 53. Kf2 {[%clk 0:00:26.7]} 53... Be3+ {[%clk 0:00:01.5]}
54. Kf3 {[%clk 0:00:26]} 54... Bh6 {[%clk 0:00:02.4]} 55. Be4 {[%clk 0:00:22]}
55... a4 {[%clk 0:00:02.6]} 56. Bd3 {[%clk 0:00:10.4]} 56... Re3+ {[%clk
0:00:02.2]} 57. Kf2 {[%clk 0:00:09.4]} 57... Rh3 {[%clk 0:00:02.6]} 58. g5
{[%clk 0:00:08.7]} 58... fxg5 {[%clk 0:00:02.6]} 59. Rxd2 {[%clk 0:00:08.4]}
59... Rh2+ {[%clk 0:00:03]} 60. Ke1 {[%clk 0:00:08.2]} 60... Rxd2 {[%clk
0:00:03.5]} 61. Kxd2 {[%clk 0:00:08.5]} 61... gxh4+ {[%clk 0:00:04.4]} 62. Ke2
{[%clk 0:00:08.7]} 62... Kf6 {[%clk 0:00:05.3]} 63. Be4 {[%clk 0:00:08.5]} 63...
Ke5 {[%clk 0:00:05.4]} 64. Kd3 {[%clk 0:00:05.7]} 64... a3 {[%clk 0:00:05.8]}
65. Bh1 {[%clk 0:00:05]} 65... Bc1 {[%clk 0:00:05.4]} 66. Kc4 {[%clk 0:00:04.6]}
66... Bd2 {[%clk 0:00:05.2]} 67. Kd3 {[%clk 0:00:04.5]} 67... Bc3 {[%clk
0:00:06.1]} 68. Ke3 {[%clk 0:00:04.7]} 68... Bb2 {[%clk 0:00:05.7]} 69. Kf3
{[%clk 0:00:04.1]} 69... Kf5 {[%clk 0:00:06.1]} 70. Kf2 {[%clk 0:00:03.4]} 70...
Kg4 {[%clk 0:00:06]} 71. Bd5 {[%clk 0:00:03.5]} 71... Kf4 {[%clk 0:00:06.3]} 72.
Kg2 {[%clk 0:00:03.5]} 72... Bd4 {[%clk 0:00:07.2]} 73. Bb3 {[%clk 0:00:03.8]}
73... Kg4 {[%clk 0:00:07.2]} 74. Kh1 {[%clk 0:00:04.7]} 74... Kg3 {[%clk
0:00:07.1]} 75. Ba4 {[%clk 0:00:05.6]} 75... h3 {[%clk 0:00:07.6]} 76. Bb3
{[%clk 0:00:06.5]} 76... Be5 {[%clk 0:00:07.8]} 77. Ba4 {[%clk 0:00:07.4]} 77...
h2 {[%clk 0:00:08.2]} 78. Bb3 {[%clk 0:00:08.3]} 78... Kf2 {[%clk 0:00:08.7]}
79. Ba4 {[%clk 0:00:08.3]} 79... Ke3 {[%clk 0:00:09.6]} 80. Bb3 {[%clk
0:00:08.9]} 80... Kd2 {[%clk 0:00:10.1]} 81. Kg2 {[%clk 0:00:07.5]} 81... Kc3
{[%clk 0:00:10.5]} 82. Kh1 {[%clk 0:00:08.4]} 82... Bd6 {[%clk 0:00:10.8]} 83.
Kg2 {[%clk 0:00:09.3]} 83... Be5 {[%clk 0:00:11.7]} 84. Kh1 {[%clk 0:00:09.9]}
84... Bd6 {[%clk 0:00:12.6]} 85. Kg2 {[%clk 0:00:10.5]} 85... Be5 {[%clk
0:00:13.1]} 1/2-1/2

[Event "*** SCC Grand Prix: Titled Tuesday Blitz"]
[Site "Chess.com"]
[Date "2020.07.07"]
[Round "3"]
[White "pedromartinez91"]
[Black "kuban1991"]
[Result "1/2-1/2"]
[WhiteElo "2541"]
[BlackElo "2764"]
[TimeControl "180+1"]
[EndTime "10:31:20 PDT"]
[Termination "Game drawn - insufficient material"]

1. e4 {[%clk 0:03:00.9]} 1... e6 {[%clk 0:02:58.6]} 2. d4 {[%clk 0:03:00.8]}
2... d5 {[%clk 0:02:58.5]} 3. Nc3 {[%clk 0:03:01.5]} 3... Bb4 {[%clk 0:02:57.7]}
4. Qd3 {[%clk 0:03:01.9]} 4... dxe4 {[%clk 0:02:49]} 5. Qxe4 {[%clk 0:03:02.8]}
5... Nf6 {[%clk 0:02:48.3]} 6. Qh4 {[%clk 0:03:03.3]} 6... b6 {[%clk 0:02:43.5]}
7. Bb5+ {[%clk 0:03:00.5]} 7... c6 {[%clk 0:02:38.4]} 8. Bd3 {[%clk 0:02:59.6]}
8... Bb7 {[%clk 0:02:38.2]} 9. Nf3 {[%clk 0:02:59.7]} 9... Nbd7 {[%clk
0:02:37.3]} 10. O-O {[%clk 0:02:54.7]} 10... Be7 {[%clk 0:02:30.8]} 11. Qg3
{[%clk 0:02:51.5]} 11... g6 {[%clk 0:02:18.7]} 12. Bh6 {[%clk 0:02:16]} 12...
Nh5 {[%clk 0:02:12.3]} 13. Qh3 {[%clk 0:02:08.7]} 13... Qc7 {[%clk 0:02:08.9]}
14. a4 {[%clk 0:01:32.5]} 14... Nf4 {[%clk 0:02:07.7]} 15. Bxf4 {[%clk
0:01:25.6]} 15... Qxf4 {[%clk 0:02:08.6]} 16. Rfe1 {[%clk 0:01:18.3]} 16... O-O
{[%clk 0:02:03.2]} 17. a5 {[%clk 0:01:13.2]} 17... c5 {[%clk 0:02:00]} 18. Be4
{[%clk 0:01:09.4]} 18... Rab8 {[%clk 0:01:48.1]} 19. axb6 {[%clk 0:01:06.5]}
19... axb6 {[%clk 0:01:27.4]} 20. Ra7 {[%clk 0:00:59.4]} 20... Bc8 {[%clk
0:01:27]} 21. d5 {[%clk 0:00:51]} 21... Nf6 {[%clk 0:01:08.1]} 22. g3 {[%clk
0:00:27.3]} 22... exd5 {[%clk 0:01:00.3]} 23. gxf4 {[%clk 0:00:16.6]} 23... Bxh3
{[%clk 0:00:58.8]} 24. Nxd5 {[%clk 0:00:17.2]} 24... Bd8 {[%clk 0:00:51.7]} 25.
Nxf6+ {[%clk 0:00:15.9]} 25... Bxf6 {[%clk 0:00:52.6]} 26. Ne5 {[%clk
0:00:16.7]} 26... Bxe5 {[%clk 0:00:42.9]} 27. fxe5 {[%clk 0:00:17.6]} 27... Be6
{[%clk 0:00:43.1]} 28. Rd1 {[%clk 0:00:15.2]} 28... Rfd8 {[%clk 0:00:42.6]} 29.
Rxd8+ {[%clk 0:00:12]} 29... Rxd8 {[%clk 0:00:43.5]} 30. Ra8 {[%clk 0:00:12.9]}
30... Rxa8 {[%clk 0:00:43.2]} 31. Bxa8 {[%clk 0:00:13.8]} 31... g5 {[%clk
0:00:44]} 32. Kg2 {[%clk 0:00:12.2]} 32... Kg7 {[%clk 0:00:42.5]} 33. Be4 {[%clk
0:00:12.7]} 33... h6 {[%clk 0:00:40.1]} 34. Kg3 {[%clk 0:00:12.9]} 34... b5
{[%clk 0:00:28.5]} 35. f4 {[%clk 0:00:12.7]} 35... b4 {[%clk 0:00:27.7]} 36. f5
{[%clk 0:00:11.9]} 36... Ba2 {[%clk 0:00:26.5]} 37. c3 {[%clk 0:00:09.4]} 37...
h5 {[%clk 0:00:19.2]} 38. Bf3 {[%clk 0:00:06.2]} 38... Kh6 {[%clk 0:00:18.2]}
39. Be4 {[%clk 0:00:06.6]} 39... Bc4 {[%clk 0:00:16.5]} 40. h4 {[%clk
0:00:06.6]} 40... Bb3 {[%clk 0:00:15.4]} 41. Bd3 {[%clk 0:00:03.8]} 41... Bd5
{[%clk 0:00:14.1]} 42. cxb4 {[%clk 0:00:04.1]} 42... cxb4 {[%clk 0:00:13.8]} 43.
Bc2 {[%clk 0:00:04.9]} 43... Bc4 {[%clk 0:00:11.2]} 44. Be4 {[%clk 0:00:05.1]}
44... Bb3 {[%clk 0:00:09.3]} 45. Bd3 {[%clk 0:00:05.2]} 45... Bd5 {[%clk
0:00:07.7]} 46. Bc2 {[%clk 0:00:05.3]} 46... Bc4 {[%clk 0:00:07.6]} 47. Bb1
{[%clk 0:00:05.6]} 47... Bd5 {[%clk 0:00:07.1]} 48. Bd3 {[%clk 0:00:05.9]} 48...
Ba2 {[%clk 0:00:06.2]} 49. Be4 {[%clk 0:00:06]} 49... Bc4 {[%clk 0:00:06.3]} 50.
Bc2 {[%clk 0:00:06.1]} 50... Bd5 {[%clk 0:00:05.7]} 51. Bb1 {[%clk 0:00:06.3]}
51... Bc4 {[%clk 0:00:05.6]} 52. Bc2 {[%clk 0:00:05.4]} 52... Bd5 {[%clk
0:00:05.5]} 53. Bd1 {[%clk 0:00:05.2]} 53... Be4 {[%clk 0:00:04.6]} 54. e6
{[%clk 0:00:05.5]} 54... fxe6 {[%clk 0:00:04.1]} 55. fxe6 {[%clk 0:00:05.6]}
55... gxh4+ {[%clk 0:00:04.2]} 56. Kxh4 {[%clk 0:00:06.5]} 56... Kg7 {[%clk
0:00:04.5]} 57. Bxh5 {[%clk 0:00:06.7]} 57... Kf6 {[%clk 0:00:04.5]} 58. Bg4
{[%clk 0:00:06.5]} 58... Bd5 {[%clk 0:00:04.1]} 59. Kg3 {[%clk 0:00:06.8]} 59...
Bxe6 {[%clk 0:00:04]} 60. Be2 {[%clk 0:00:05.2]} 60... Ke5 {[%clk 0:00:03.8]}
61. Kf2 {[%clk 0:00:05.9]} 61... Kd4 {[%clk 0:00:03.9]} 62. Ke1 {[%clk
0:00:06.4]} 62... Bc4 {[%clk 0:00:04.8]} 63. Bd1 {[%clk 0:00:05.5]} 63... Kd3
{[%clk 0:00:04.2]} 64. Ba4 {[%clk 0:00:06.1]} 64... Kd4 {[%clk 0:00:03.9]} 65.
Kd2 {[%clk 0:00:06.3]} 65... Bd5 {[%clk 0:00:04.8]} 66. Kc1 {[%clk 0:00:06.6]}
66... Bc4 {[%clk 0:00:05.7]} 67. Be8 {[%clk 0:00:06.9]} 67... Bd5 {[%clk
0:00:06.6]} 68. Ba4 {[%clk 0:00:07.3]} 68... Bc4 {[%clk 0:00:06.9]} 69. Bd1
{[%clk 0:00:07.9]} 69... Bd5 {[%clk 0:00:07.1]} 70. Kd2 {[%clk 0:00:08.6]} 70...
Bc4 {[%clk 0:00:07.2]} 71. Bf3 {[%clk 0:00:09.2]} 71... Bd5 {[%clk 0:00:07.2]}
72. Bh5 {[%clk 0:00:09.7]} 72... Bc4 {[%clk 0:00:07]} 73. Bg6 {[%clk 0:00:10.4]}
73... Bd5 {[%clk 0:00:07.9]} 74. Bd3 {[%clk 0:00:11]} 74... Bc4 {[%clk
0:00:08.6]} 75. Bb1 {[%clk 0:00:10.8]} 75... Bd5 {[%clk 0:00:08.4]} 76. Bd3
{[%clk 0:00:11.1]} 76... Bc4 {[%clk 0:00:08.3]} 77. Bb1 {[%clk 0:00:10.2]} 77...
Bd5 {[%clk 0:00:08]} 78. Bc2 {[%clk 0:00:10.5]} 78... Bc4 {[%clk 0:00:07.9]} 79.
Bd1 {[%clk 0:00:11.1]} 79... Bd5 {[%clk 0:00:07.9]} 80. b3 {[%clk 0:00:11.6]}
80... Bxb3 {[%clk 0:00:07.1]} 81. Bxb3 {[%clk 0:00:11.8]} 81... Kc5 {[%clk
0:00:07.3]} 82. Kd3 {[%clk 0:00:11.8]} 82... Kd6 {[%clk 0:00:08.2]} 83. Bc4
{[%clk 0:00:12.4]} 83... Ke7 {[%clk 0:00:08.9]} 84. Kc2 {[%clk 0:00:11.9]} 84...
Kf6 {[%clk 0:00:09.8]} 85. Kb3 {[%clk 0:00:12.8]} 85... Ke5 {[%clk 0:00:09.7]}
86. Kxb4 {[%clk 0:00:13.7]} 1/2-1/2